bitfinex-derivatives/quotes_BTCF0:USTF0_20251030
["timestamp","ask_amount","ask_price","bid_price","bid_amount"]
[1761863954890,0.23243355,107730.0,107720.0,0.05696]
[1761863955396,0.23243355,107730.0,107720.0,0.06296]
[1761863958003,0.06164868,107730.0,107720.0,0.06296]
[1761863958194,0.23243355,107730.0,107720.0,0.06296]
[1761863960596,0.06164868,107730.0,107720.0,0.23374487]
[1761863960803,0.21386355,107730.0,107720.0,0.23374487]
[1761863961102,0.23243355,107730.0,107720.0,0.23374487]
[1761863961303,0.23243355,107730.0,107720.0,0.06296]
[1761863961494,0.23243355,107730.0,107720.0,0.23374487]
[1761863963306,0.23243355,107730.0,107720.0,0.83374487]
[1761863963901,0.18935487,107730.0,107720.0,0.83374487]
[1761863964394,0.01857,107730.0,107720.0,0.83374487]
[1761863964998,0.01857,107730.0,107720.0,1.15402487]
[1761863965198,0.04308367,107730.0,107720.0,1.15402487]
[1761863965703,0.01857,107730.0,107720.0,0.55402487]
[1761863965899,0.04308294,107730.0,107720.0,0.55402487]
[1761863966092,0.01857,107730.0,107720.0,0.55402487]
[1761863966295,0.04300255,107730.0,107720.0,0.55402487]
[1761863967502,0.01857,107730.0,107720.0,0.55402487]
[1761863967706,0.18935487,107730.0,107720.0,0.55402487]
[1761863969302,0.17078487,107740.0,107720.0,0.55402487]
[1761863969508,0.23236863,107740.0,107730.0,0.05598]
[1761863970510,0.4031535,107740.0,107730.0,0.05598]
[1761863972005,0.4031535,107740.0,107730.0,0.001]
[1761863972006,0.58666837,107740.0,107730.0,0.001]
[1761863972212,0.4158835,107740.0,107730.0,0.001]
[1761863972508,0.4158835,107740.0,107730.0,0.003]
[1761863972706,0.4186835,107740.0,107730.0,0.024]
[1761863973309,0.4158835,107740.0,107730.0,0.024]
[1761863973810,0.4158835,107740.0,107730.0,0.003]
[1761863974108,0.4158835,107740.0,107730.0,0.024]
[1761863974310,0.44357422,107740.0,107730.0,0.024]
[1761863974702,0.44077422,107740.0,107730.0,0.024]
[1761863975301,0.39143974,107740.0,107730.0,0.003]
[1761863975510,0.44082678,107740.0,107730.0,0.024]
[1761863977510,0.44362678,107740.0,107730.0,0.024]
[1761863978108,0.44082678,107740.0,107730.0,0.024]
[1761863979416,0.44082678,107740.0,107730.0,0.003]
[1761863980708,0.03714,107720.0,107710.0,0.07784592]
[1761863980913,0.40316227,107720.0,107710.0,0.07784592]
[1761863981210,0.40901227,107720.0,107710.0,0.02120592]
[1761863981414,0.23829134,107720.0,107710.0,0.02120592]
[1761863981604,0.26322885,107720.0,107710.0,0.02120592]
[1761863981806,0.26322885,107720.0,107710.0,0.02620592]
[1761863982207,0.23829134,107720.0,107710.0,0.02920592]
[1761863982614,0.23829134,107720.0,107710.0,0.02120592]
[1761863982815,0.24029134,107720.0,107710.0,0.04267592]
[1761863983016,0.24029134,107720.0,107710.0,0.06506592]
[1761863984822,0.24029134,107720.0,107710.0,0.02120592]
[1761863985815,0.24029134,107720.0,107710.0,0.04267592]
[1761863986906,0.24029134,107720.0,107710.0,0.02120592]
[1761863987118,0.03714,107700.0,107690.0,0.05722]
[1761863987309,0.20798881,107700.0,107690.0,0.05722]
[1761863987706,0.03714,107700.0,107690.0,0.05722]
[1761863988017,0.20798881,107710.0,107700.0,0.05649]
[1761863988218,0.23239332,107710.0,107700.0,0.05649]
[1761863989722,0.20798881,107710.0,107700.0,0.05649]
[1761863990222,0.20898881,107710.0,107700.0,0.05649]
[1761863991220,0.04728033,107710.0,107700.0,0.05649]
[1761863992723,0.21812914,107710.0,107700.0,0.05649]
[1761863993324,0.04728033,107710.0,107700.0,0.05649]
[1761863993517,0.21812914,107710.0,107700.0,0.05649]
[1761863993719,0.03714,107700.0,107690.0,0.02147]
[1761863993924,0.03714,107690.0,107680.0,0.05649]
[1761863994124,0.20798881,107690.0,107680.0,0.05649]
[1761863994727,0.20598881,107690.0,107680.0,0.05649]
[1761863995421,0.20598881,107690.0,107680.0,0.05949]
[1761863996419,0.20598881,107690.0,107680.0,0.06049]
[1761863998828,0.20598881,107690.0,107680.0,0.004]
[1761863998829,0.52650881,107690.0,107680.0,0.004]
[1761863999028,0.52650881,107690.0,107680.0,0.04786]
[1761863999225,0.55092424,107690.0,107680.0,0.04786]
[1761863999629,0.55092424,107690.0,107680.0,0.02547]
[1761863999838,0.55092424,107690.0,107680.0,0.004]
[1761864000130,0.52650881,107690.0,107680.0,0.004]
[1761864000429,0.52650881,107690.0,107680.0,0.02547]
[1761864000731,0.52650881,107690.0,107680.0,0.06049]
[1761864002828,0.35566,107690.0,107680.0,0.06049]
[1761864003621,0.52650881,107690.0,107680.0,0.06049]
[1761864005123,0.55092872,107690.0,107680.0,0.06049]
[1761864006829,0.05955991,107690.0,107680.0,0.06049]
[1761864008625,0.23040872,107690.0,107680.0,0.06049]
[1761864010426,0.23040872,107690.0,107680.0,0.004]
[1761864012425,0.23040872,107690.0,107680.0,0.02575]
[1761864012835,0.23040872,107690.0,107680.0,0.004]
[1761864016831,0.23040872,107690.0,107680.0,0.02575]
[1761864020236,0.25534623,107690.0,107680.0,0.02575]
[1761864020625,0.25534623,107690.0,107680.0,0.004]
[1761864020934,0.32811064,107690.0,107680.0,0.004]
[1761864021436,0.03314,107670.0,107660.0,0.0557]
[1761864021636,0.22840872,107670.0,107660.0,0.0557]
[1761864022021,0.22840872,107670.0,107660.0,0.02119]
[1761864022221,0.03314,107660.0,107650.0,0.0557]
[1761864022627,0.19498881,107660.0,107650.0,0.0557]
[1761864023427,0.21947321,107660.0,107650.0,0.0637]
[1761864024536,0.21947321,107660.0,107650.0,0.0677]
[1761864024937,0.21947321,107660.0,107650.0,0.0597]
[1761864025136,0.05778708,107660.0,107650.0,0.0567]
[1761864025340,0.0244844,107660.0,107650.0,0.82754881]
[1761864025532,0.26104,107680.0,107670.0,0.05645]
[1761864025843,0.03960855,107680.0,107670.0,0.05645]
[1761864027741,0.21545736,107680.0,107670.0,0.05645]
[1761864029338,0.21745736,107680.0,107670.0,0.05645]
[1761864029539,0.22695626,107680.0,107670.0,0.05645]
[1761864041336,0.39800095,107680.0,107670.0,0.05645]
[1761864041942,0.05610745,107680.0,107670.0,0.05645]
[1761864042143,0.39800095,107680.0,107670.0,0.05645]
[1761864045447,0.2270542,107680.0,107670.0,0.22739675]
[1761864045745,0.2270542,107680.0,107670.0,0.05645]
[1761864046142,0.39800095,107680.0,107670.0,0.05645]
[1761864062552,0.38850205,107680.0,107670.0,0.05645]
[1761864062746,0.03146855,107680.0,107670.0,0.22739675]
[1761864062951,0.003,107680.0,107670.0,0.23648848]
[1761864063359,0.002,107680.0,107670.0,0.23648848]
[1761864063657,0.001,107680.0,107670.0,0.23648848]
[1761864063858,0.002,107680.0,107670.0,0.23928848]
[1761864064954,0.001,107680.0,107670.0,0.22739675]
[1761864065160,0.18608675,107690.0,107680.0,0.05778]
[1761864065357,0.18608675,107690.0,107680.0,0.3783]
[1761864065561,0.18608675,107690.0,107680.0,0.54924675]
[1761864065756,0.18608675,107690.0,107680.0,0.05778]
[1761864065961,0.18608675,107690.0,107680.0,0.3783]
[1761864065962,0.38140246,107690.0,107680.0,0.3783]
[1761864066160,0.21045571,107690.0,107680.0,0.05778]
[1761864066361,0.21145571,107690.0,107680.0,0.05778]
[1761864066554,0.21245571,107690.0,107680.0,0.05778]
[1761864069765,0.01514,107680.0,107670.0,0.37853]
[1761864069965,0.3570335,107680.0,107670.0,0.37853]
[1761864070965,0.3570335,107680.0,107670.0,0.05797]
[1761864071162,0.3570335,107680.0,107670.0,0.37849]
[1761864071965,0.18608675,107680.0,107670.0,0.37849]
[1761864073969,0.3570335,107680.0,107670.0,0.37849]
[1761864075766,0.3570335,107680.0,107670.0,0.02216]
[1761864075971,0.3570335,107680.0,107670.0,0.05743]
[1761864076562,0.18608675,107680.0,107670.0,0.05743]
[1761864078771,0.3570335,107680.0,107670.0,0.05743]
[1761864083877,0.38140346,107680.0,107670.0,0.05743]
[1761864084564,0.38140346,107680.0,107670.0,0.02216]
[1761864084763,0.01514,107670.0,107660.0,0.3771]
[1761864084975,0.18608675,107670.0,107660.0,0.3771]
[1761864085578,0.18608675,107670.0,107660.0,0.54804675]
[1761864086170,0.18608675,107670.0,107660.0,0.54904675]
[1761864086881,0.18608675,107670.0,107660.0,0.55104675]
[1761864089678,0.18608675,107670.0,107660.0,0.3801]
[1761864089887,0.18608675,107670.0,107660.0,0.55104675]
[1761864096274,0.18608675,107670.0,107660.0,0.3801]
[1761864099583,0.18608675,107670.0,107660.0,0.55104675]
[1761864099584,0.17851675,107670.0,107660.0,0.55104675]
[1761864101287,0.00757,107670.0,107660.0,0.3801]
[1761864102193,0.18605586,107680.0,107670.0,0.05642]
[1761864102387,0.21058964,107680.0,107670.0,0.05642]
[1761864102689,0.03967378,107680.0,107670.0,0.05642]
[1761864103587,0.03210378,107680.0,107670.0,0.22733586]
[1761864103784,0.02453378,107680.0,107670.0,0.05642]
[1761864104184,0.04190172,107700.0,107690.0,0.04273]
[1761864104492,0.2199901,107700.0,107690.0,0.37652]
[1761864105389,0.2219901,107700.0,107690.0,0.37652]
[1761864106694,0.2249901,107700.0,107690.0,0.37652]
[1761864113906,0.02954003,107700.0,107690.0,0.37652]
[1761864114308,0.01257,107700.0,107690.0,0.37652]
[1761864115107,0.01157,107700.0,107690.0,0.37652]
[1761864115307,0.004,107700.0,107690.0,0.37652]
[1761864115699,0.002,107700.0,107690.0,0.37652]
[1761864118414,0.00957,107700.0,107690.0,0.37652]
[1761864119510,0.00857,107700.0,107690.0,0.37652]
[1761864120220,0.00757,107700.0,107690.0,0.37652]
[1761864120714,0.1954283,107710.0,107700.0,0.05604]
[1761864121512,0.21980293,107710.0,107700.0,0.05604]
[1761864121904,0.22080293,107710.0,107700.0,0.05604]
[1761864122108,0.22180293,107710.0,107700.0,0.05604]
[1761864122408,0.22180086,107710.0,107700.0,0.05604]
[1761864123510,0.22180086,107710.0,107700.0,0.06552773]
[1761864124215,0.21242785,107710.0,107700.0,0.06552773]
[1761864124417,0.18805586,107710.0,107700.0,0.06552773]
[1761864125818,0.18805586,107710.0,107700.0,0.05604]
[1761864126515,0.01714,107710.0,107700.0,0.05604]
[1761864126707,0.18805586,107710.0,107700.0,0.05604]
[1761864127016,0.002,107710.0,107700.0,0.05604]
[1761864128118,0.00957,107710.0,107700.0,0.05604]
[1761864132822,0.18805586,107710.0,107700.0,0.05604]
[1761864133119,0.18805586,107710.0,107700.0,0.262]
[1761864134323,0.01714,107710.0,107700.0,0.262]
[1761864135324,0.04154541,107710.0,107700.0,0.262]
[1761864135622,0.01714,107710.0,107700.0,0.262]
[1761864136225,0.18805586,107710.0,107700.0,0.262]
[1761864136524,0.002,107710.0,107700.0,0.262]
[1761864136817,0.01714,107710.0,107700.0,0.262]
[1761864137015,0.00957,107710.0,107700.0,0.262]
[1761864138118,0.002,107710.0,107700.0,0.262]
[1761864138323,0.00957,107710.0,107700.0,0.262]
[1761864139224,0.01714,107710.0,107700.0,0.262]
[1761864139422,0.18805586,107710.0,107700.0,0.262]
[1761864139623,0.18805586,107710.0,107700.0,0.05604]
[1761864139826,0.21247043,107710.0,107700.0,0.3764]
[1761864142124,0.21247043,107710.0,107700.0,0.05604]
[1761864142323,0.21247043,107710.0,107700.0,0.3764]
[1761864150731,0.21247043,107710.0,107700.0,0.37636]
[1761864153639,0.21247043,107710.0,107700.0,0.05604]
[1761864153934,0.21247043,107710.0,107700.0,0.37636]
[1761864163337,0.21238901,107710.0,107700.0,0.05604]
[1761864163642,0.21238901,107710.0,107700.0,0.37636]
[1761864168840,0.38322345,107710.0,107700.0,0.05604]
[1761864169044,0.98322345,107710.0,107700.0,0.05604]
[1761864169350,0.98602345,107710.0,107700.0,0.05604]
[1761864169548,1.01092247,107710.0,107700.0,0.04273]
[1761864169848,1.01092247,107710.0,107700.0,0.02104]
[1761864170441,1.01092247,107710.0,107700.0,0.04365]
[1761864170948,1.01092247,107710.0,107700.0,0.05674]
[1761864173346,1.00812247,107710.0,107700.0,0.05674]
[1761864174147,0.40812247,107710.0,107700.0,0.05674]
[1761864180453,0.06645359,107710.0,107700.0,0.05674]
[1761864180754,0.40812247,107710.0,107700.0,0.05674]
[1761864182952,0.01514,107700.0,107690.0,0.03657]
[1761864183159,0.35680888,107700.0,107690.0,0.05918]
[1761864183351,0.38122345,107700.0,107690.0,0.05918]
[1761864184560,0.21038901,107700.0,107690.0,0.23001444]
[1761864184754,0.02441457,107700.0,107690.0,0.23001444]
[1761864184960,0.17940444,107710.0,107700.0,0.05896]
[1761864185166,0.20390082,107710.0,107700.0,0.22979444]
[1761864185457,0.20290082,107710.0,107700.0,0.55007444]
[1761864186062,0.20290082,107710.0,107700.0,0.37924]
[1761864186249,0.20390082,107710.0,107700.0,0.37924]
[1761864186450,0.20490082,107710.0,107700.0,0.37924]
[1761864187554,0.21247082,107710.0,107700.0,0.37924]
[1761864189564,0.20490082,107710.0,107700.0,0.37924]
[1761864191962,0.21247082,107710.0,107700.0,0.37924]
[1761864193656,0.38330526,107710.0,107700.0,0.37924]
[1761864200160,0.38330526,107710.0,107700.0,0.05896]
[1761864202873,0.21247082,107710.0,107700.0,0.05896]
[1761864203267,0.04163638,107710.0,107700.0,0.05896]
[1761864203467,0.21247082,107710.0,107700.0,0.05896]
[1761864205871,0.38330526,107710.0,107700.0,0.05896]
[1761864210675,0.21247082,107710.0,107700.0,0.05896]
[1761864225292,0.21247856,107710.0,107700.0,0.05896]
[1761864241013,0.23737758,107710.0,107700.0,0.05896]
[1761864245112,0.21247856,107710.0,107700.0,0.05896]
[1761864245712,0.04163638,107710.0,107700.0,0.05896]
[1761864245920,0.02649638,107710.0,107700.0,0.54996218]
[1761864246323,0.002,107710.0,107700.0,0.54996218]
[1761864246813,0.002,107710.0,107700.0,0.64282918]
[1761864247311,0.002,107710.0,107700.0,0.65205527]
[1761864247510,0.18012254,107720.0,107710.0,0.05629]
[1761864247511,0.18769254,107720.0,107710.0,0.05629]
[1761864247711,0.0413044,107720.0,107710.0,0.05629]
[1761864248522,0.0423044,107720.0,107710.0,0.05629]
[1761864249017,0.0498744,107720.0,107710.0,0.05629]
[1761864249224,0.22071658,107720.0,107710.0,0.05629]
[1761864249422,0.0498744,107720.0,107710.0,0.05629]
[1761864249721,0.22171658,107720.0,107710.0,0.05629]
[1761864258425,0.19726254,107720.0,107710.0,0.05629]
[1761864258732,0.02642036,107720.0,107710.0,0.05629]
[1761864259027,0.04157258,107720.0,107710.0,0.05629]
[1761864259224,0.00957,107720.0,107710.0,0.22713218]
[1761864259430,0.0242209,107740.0,107730.0,0.0574]
[1761864259621,0.04865096,107740.0,107730.0,0.0574]
[1761864260223,0.0242209,107740.0,107730.0,0.0574]
[1761864260722,0.0262209,107740.0,107730.0,0.0574]
[1761864262331,0.20006308,107740.0,107730.0,0.0574]
[1761864271034,0.0292209,107740.0,107730.0,0.0574]
[1761864271235,0.005,107740.0,107730.0,0.0574]
[1761864271630,0.01257,107740.0,107730.0,0.0574]
[1761864272034,0.005,107740.0,107730.0,0.23104218]
[1761864272331,0.005,107740.0,107730.0,0.0602]
[1761864272930,0.005,107740.0,107730.0,0.0574]
[1761864273135,0.005,107740.0,107730.0,0.22824218]
[1761864273730,0.005,107740.0,107730.0,0.23757463]
[1761864274339,0.005,107740.0,107730.0,0.24037463]
[1761864274640,0.02014,107740.0,107730.0,0.0602]
[1761864274840,0.19098218,107740.0,107730.0,0.0574]
[1761864275139,0.19098218,107740.0,107730.0,0.35912]
[1761864277045,0.19098218,107740.0,107730.0,0.0574]
[1761864277340,0.19098218,107740.0,107730.0,0.37736]
[1761864277840,0.18898218,107740.0,107730.0,0.37736]
[1761864278028,0.18798218,107740.0,107730.0,0.0574]
[1761864278232,0.18798218,107740.0,107720.0,0.0574]
[1761864278233,0.01514,107730.0,107720.0,0.0574]
[1761864278436,0.35682436,107730.0,107720.0,0.0574]
[1761864278841,0.38104028,107730.0,107720.0,0.0574]
[1761864279634,0.38204028,107730.0,107720.0,0.0574]
[1761864280148,0.2111981,107730.0,107720.0,0.0574]
[1761864281146,0.2121981,107730.0,107720.0,0.0574]
[1761864281346,0.38304028,107730.0,107720.0,0.0574]
[1761864283147,0.38304652,107730.0,107720.0,0.0574]
[1761864283747,0.01514,107720.0,107710.0,0.05736]
[1761864284041,0.01514,107710.0,107700.0,0.37737]
[1761864284346,0.18598218,107710.0,107700.0,0.05741]
[1761864284845,0.18498218,107710.0,107700.0,0.05741]
[1761864285147,0.18498218,107710.0,107700.0,0.05841]
[1761864285341,0.1849814,107710.0,107700.0,0.05841]
[1761864285537,0.1849814,107710.0,107700.0,0.06041]
[1761864285939,0.3558228,107710.0,107700.0,0.06041]
[1761864288844,0.1849814,107710.0,107700.0,0.06041]
[1761864295854,0.01314,107720.0,107710.0,0.05832]
[1761864296149,0.3548228,107720.0,107710.0,0.37832]
[1761864296553,0.1839814,107720.0,107710.0,0.37832]
[1761864298758,0.01314,107720.0,107710.0,0.37832]
[1761864299055,0.51574442,107740.0,107720.0,0.05832]
[1761864299056,0.1839814,107730.0,107720.0,0.05832]
[1761864299357,0.20841852,107730.0,107720.0,0.05832]
[1761864299558,0.1839814,107730.0,107720.0,0.2291614]
[1761864299851,0.1839814,107730.0,107720.0,0.05832]
[1761864300244,0.1849814,107730.0,107720.0,0.05832]
[1761864300443,0.1859814,107730.0,107720.0,0.05832]
[1761864301160,0.1859814,107730.0,107720.0,0.2291614]
[1761864301347,0.1859814,107730.0,107720.0,0.05832]
[1761864301548,0.1859814,107730.0,107720.0,0.37832]
[1761864305553,0.1859814,107730.0,107720.0,0.05832]
[1761864305751,0.1859814,107730.0,107720.0,0.37832]
[1761864307352,0.21045331,107730.0,107720.0,0.37832]
[1761864307754,0.1859814,107730.0,107720.0,0.37832]
[1761864308262,0.21045615,107730.0,107720.0,0.37832]
[1761864311465,0.21045615,107730.0,107720.0,0.5491614]
[1761864311963,0.1859814,107730.0,107720.0,0.5491614]
[1761864315163,0.1859814,107730.0,107720.0,0.5491214]
[1761864319666,0.1794114,107730.0,107720.0,0.5491214]
[1761864319972,0.1728414,107730.0,107720.0,0.5491214]
[1761864320270,0.1859814,107730.0,107720.0,0.5491214]
[1761864320671,0.1794114,107730.0,107720.0,0.5491214]
[1761864321574,0.1728414,107730.0,107720.0,0.5491214]
[1761864321774,0.002,107730.0,107720.0,0.5491214]
[1761864325977,0.02651473,107730.0,107720.0,0.5491214]
[1761864326276,0.002,107730.0,107720.0,0.5491214]
[1761864326786,0.01514,107730.0,107720.0,0.37828]
[1761864327089,0.1859814,107730.0,107720.0,0.37828]
[1761864327474,0.2093971,107730.0,107720.0,0.38228]
[1761864327875,0.2083971,107730.0,107720.0,0.38228]
[1761864328273,0.2083971,107730.0,107720.0,0.06232]
[1761864328480,0.2083971,107730.0,107720.0,0.38224]
[1761864339487,0.2083971,107730.0,107720.0,0.06232]
[1761864339685,0.2083971,107730.0,107720.0,0.38224]
[1761864342384,0.2083971,107730.0,107720.0,0.06232]
[1761864342585,0.3858085,107730.0,107720.0,0.004]
[1761864342790,0.9886085,107730.0,107720.0,0.004]
[1761864342988,0.9886085,107730.0,107720.0,0.02547]
[1761864343189,1.01351152,107730.0,107720.0,0.004]
[1761864343776,1.01071152,107730.0,107720.0,0.004]
[1761864345390,0.9858085,107730.0,107720.0,0.004]
[1761864345590,0.9886085,107730.0,107720.0,0.004]
[1761864346890,0.9858085,107730.0,107720.0,0.004]
[1761864347291,0.9857663,107730.0,107720.0,0.004]
[1761864348083,0.80411546,107730.0,107700.0,0.05588]
[1761864348382,0.1839603,107710.0,107700.0,0.05588]
[1761864348691,0.20835519,107710.0,107700.0,0.05588]
[1761864349090,0.20835519,107710.0,107700.0,0.06288]
[1761864349893,0.20935519,107710.0,107700.0,0.05588]
[1761864350486,0.20935519,107710.0,107700.0,0.05788]
[1761864350891,0.20935519,107710.0,107700.0,0.05588]
[1761864351198,0.21235519,107710.0,107700.0,0.05588]
[1761864355298,0.1879603,107710.0,107700.0,0.05588]
[1761864362397,0.01314,107700.0,107690.0,0.03472]
[1761864362698,0.3547806,107700.0,107690.0,0.03472]
[1761864363004,0.3547806,107700.0,107690.0,0.05604]
[1761864363501,0.3791616,107700.0,107690.0,0.05604]
[1761864363704,0.3811616,107700.0,107690.0,0.05604]
[1761864364096,0.3567806,107700.0,107690.0,0.05604]
[1761864364297,0.38116117,107700.0,107690.0,0.05604]
[1761864365106,0.3567806,107700.0,107690.0,0.05604]
[1761864365803,0.38116051,107700.0,107690.0,0.05604]
[1761864367299,0.21034021,107700.0,107690.0,0.05604]
[1761864367605,0.38116051,107700.0,107690.0,0.05604]
[1761864369109,0.01314,107690.0,107680.0,0.05645]
[1761864369307,0.1839603,107690.0,107680.0,0.05645]
[1761864370206,0.1849603,107690.0,107680.0,0.05745]
[1761864373209,0.20936845,107690.0,107680.0,0.05745]
[1761864373402,0.21890013,107690.0,107680.0,0.05745]
[1761864373904,0.19449198,107690.0,107680.0,0.05745]
[1761864374910,0.21890088,107690.0,107680.0,0.05745]
[1761864376999,0.04808058,107690.0,107680.0,0.05745]
[1761864377204,0.21890088,107690.0,107680.0,0.05745]
[1761864381617,0.21890088,107690.0,107680.0,0.02247]
[1761864381910,0.01314,107670.0,107660.0,0.05793]
[1761864382104,0.1839603,107670.0,107660.0,0.05793]
[1761864383717,0.1839603,107670.0,107660.0,0.05893]
[1761864383916,0.1839603,107670.0,107660.0,0.06293]
[1761864388516,0.3547806,107670.0,107660.0,0.06293]
[1761864391820,0.1839603,107670.0,107660.0,0.06293]
[1761864401036,0.00657,107670.0,107660.0,0.06293]
[1761864401333,0.3547806,107670.0,107660.0,0.06293]
[1761864401730,0.3613506,107670.0,107660.0,0.005]
[1761864401922,0.3857602,107670.0,107660.0,0.02644]
[1761864402128,0.3791902,107670.0,107660.0,0.06165]
[1761864403436,0.2083699,107670.0,107660.0,0.06165]
[1761864403836,0.3791902,107670.0,107660.0,0.06165]
[1761864404937,0.2083699,107670.0,107660.0,0.06165]
[1761864405139,0.1839603,107670.0,107660.0,0.06165]
[1761864407339,0.35508404,107670.0,107660.0,0.06165]
[1761864407838,0.18411202,107670.0,107660.0,0.06165]
[1761864408138,0.2085335,107670.0,107660.0,0.06165]
[1761864408339,0.18411202,107670.0,107660.0,0.06165]
[1761864409140,0.2085378,107670.0,107660.0,0.06165]
[1761864409443,0.03756578,107670.0,107660.0,0.06165]
[1761864409640,0.2085378,107670.0,107660.0,0.06165]
[1761864410930,0.2085378,107670.0,107660.0,0.05865]
[1761864413036,0.2095378,107670.0,107660.0,0.05765]
[1761864413239,0.01414,107670.0,107660.0,0.22862202]
[1761864413437,0.001,107670.0,107660.0,0.22862202]
[1761864413840,0.17854202,107670.0,107660.0,0.05765]
[1761864414142,0.18511202,107670.0,107660.0,0.05765]
[1761864414948,0.18511202,107670.0,107660.0,0.37769]
[1761864415141,0.18511202,107670.0,107660.0,0.54866202]
[1761864415846,0.20955467,107670.0,107660.0,0.54866202]
[1761864416150,0.18511202,107670.0,107660.0,0.54866202]
[1761864417248,0.2094202,107670.0,107660.0,0.54866202]
[1761864418151,0.2094202,107670.0,107660.0,1.14866202]
[1761864418945,0.2094202,107670.0,107660.0,0.05765]
[1761864419151,0.2094202,107670.0,107660.0,0.37769]
[1761864423455,0.03844818,107670.0,107660.0,0.37769]
[1761864423762,0.2094202,107670.0,107660.0,0.37769]
[1761864425262,0.18511202,107670.0,107660.0,0.37769]
[1761864425656,0.17197202,107670.0,107660.0,0.54866202]
[1761864427659,0.001,107670.0,107660.0,0.64156122]
[1761864428059,0.001,107670.0,107660.0,0.64436122]
[1761864428260,0.001,107670.0,107660.0,0.81533324]
[1761864429065,0.001,107670.0,107660.0,0.64436122]
[1761864429664,0.001,107670.0,107660.0,0.81533324]
[1761864429865,0.001,107670.0,107660.0,0.64436122]
[1761864430166,0.001,107670.0,107660.0,0.55146202]
[1761864430465,0.001,107670.0,107660.0,0.54866202]
[1761864431370,0.001,107670.0,107660.0,0.55066202]
[1761864431568,0.18411202,107680.0,107670.0,0.05587]
[1761864431869,0.18411202,107680.0,107670.0,0.37591]
[1761864433770,0.18511202,107680.0,107670.0,0.37691]
[1761864434765,0.35608404,107680.0,107670.0,0.37691]
[1761864435367,0.18511202,107680.0,107670.0,0.37691]
[1761864436472,0.35608404,107680.0,107670.0,0.37691]
[1761864437974,0.38037989,107680.0,107670.0,0.37687]
[1761864441779,0.35608404,107680.0,107670.0,0.37687]
[1761864441971,0.38038508,107680.0,107670.0,0.37687]
[1761864449580,0.03844104,107680.0,107670.0,0.37687]
[1761864449784,0.38038508,107680.0,107670.0,0.37687]
[1761864451775,0.38039056,107680.0,107670.0,0.37687]
[1761864453088,0.20941854,107680.0,107670.0,0.37687]
[1761864453284,0.38039056,107680.0,107670.0,0.37687]
[1761864453490,0.20941854,107680.0,107670.0,0.37687]
[1761864455081,0.19627854,107680.0,107670.0,0.54784202]
[1761864455281,0.20941854,107680.0,107670.0,0.37687]
[1761864456186,0.20841854,107680.0,107670.0,0.37687]
[1761864456681,0.20184854,107680.0,107670.0,0.37687]
[1761864456887,0.20284854,107680.0,107670.0,0.37687]
[1761864457292,0.02530652,107680.0,107670.0,0.37687]
[1761864457783,0.19627854,107680.0,107670.0,0.37687]
[1761864458889,0.19527854,107680.0,107670.0,0.54884202]
[1761864459186,0.00953168,107690.0,107680.0,0.05885]
[1761864459187,0.01610168,107690.0,107680.0,0.05885]
[1761864459378,0.21795849,107690.0,107680.0,0.05885]
[1761864460592,0.21895849,107690.0,107680.0,0.05885]
[1761864461303,0.21895849,107690.0,107680.0,0.05985]
[1761864464591,0.21895849,107690.0,107680.0,0.37981]
[1761864467394,0.2188881,107690.0,107680.0,0.37981]
[1761864467691,0.2188881,107690.0,107680.0,0.05985]
[1761864467892,0.2188881,107690.0,107680.0,0.37981]
[1761864470989,0.2188881,107690.0,107680.0,0.05985]
[1761864471196,0.2188881,107690.0,107680.0,0.37981]
[1761864478102,0.2057481,107690.0,107680.0,0.37981]
[1761864478301,0.2188881,107690.0,107680.0,0.37981]
[1761864481004,0.2188881,107690.0,107680.0,0.05985]
[1761864481204,0.2188881,107690.0,107680.0,0.37981]
[1761864487796,0.2188881,107690.0,107680.0,0.05985]
[1761864488311,0.2188881,107690.0,107680.0,0.28029]
[1761864488811,0.25043186,107690.0,107680.0,0.001]
[1761864489208,0.25043186,107690.0,107680.0,0.02226]
[1761864489409,0.24386186,107690.0,107680.0,0.04366]
[1761864490108,0.24386186,107690.0,107680.0,0.05726]
[1761864491912,0.24386186,107690.0,107680.0,0.001]
[1761864492110,0.01314,107680.0,107670.0,0.02168]
[1761864492306,0.35494326,107680.0,107670.0,0.02168]
[1761864492502,0.37925805,107680.0,107670.0,0.02168]
[1761864493705,0.20835642,107680.0,107670.0,0.0568]
[1761864494404,0.20835642,107680.0,107670.0,0.0588]
[1761864496513,0.20817807,107680.0,107670.0,0.0588]
[1761864510229,0.3790797,107680.0,107670.0,0.0588]
[1761864510430,0.20817807,107680.0,107670.0,0.0588]
[1761864515341,0.20817807,107680.0,107670.0,0.04667]
[1761864516136,0.20817807,107680.0,107670.0,0.06066]
[1761864516739,0.01314,107670.0,107660.0,0.05881]
[1761864516941,0.35494326,107670.0,107660.0,0.05881]
[1761864517133,0.3790797,107670.0,107660.0,0.05881]
[1761864518134,0.02413644,107670.0,107660.0,0.05881]
[1761864518433,0.43655103,107690.0,107680.0,0.06]
[1761864518434,0.21849914,107690.0,107680.0,0.06]
[1761864518742,0.03401607,107690.0,107680.0,0.06]
[1761864520332,0.04158607,107690.0,107680.0,0.06]
[1761864520642,0.2190577,107690.0,107680.0,0.06]
[1761864523836,0.2190577,107690.0,107680.0,0.66]
[1761864525344,0.19457331,107690.0,107680.0,0.66]
[1761864525643,0.21244719,107690.0,107680.0,0.06]
[1761864526345,0.18800331,107690.0,107680.0,0.06]
[1761864526538,0.19457331,107690.0,107680.0,0.37992]
[1761864529445,0.19455842,107690.0,107680.0,0.37992]
[1761864530246,0.18141842,107690.0,107680.0,0.97992]
[1761864530446,0.17188674,107690.0,107680.0,0.55080674]
[1761864531550,0.001,107690.0,107680.0,0.55080674]
[1761864531751,0.17188674,107690.0,107680.0,0.55080674]
[1761864536052,0.17188674,107690.0,107680.0,0.37992]
[1761864536053,0.17845674,107690.0,107680.0,0.37992]
[1761864536348,0.18502674,107690.0,107680.0,0.06]
[1761864536553,0.18502674,107690.0,107680.0,0.37992]
[1761864538254,0.18502674,107690.0,107680.0,0.06]
[1761864538459,0.18502674,107690.0,107680.0,0.37988]
[1761864539149,0.35591348,107690.0,107680.0,0.37988]